fUST/lending_fUST_20250406
["ID","MTS","AMOUNT","RATE_DAILY","PERIOD"]
[357192122,1743880240936,-500.0,0.00023175,2]
[357192123,1743880240945,-470.35186303,0.00023175,2]
[357192124,1743880240957,-500.0,0.00023175,2]
[357192125,1743880240967,-158.13265015,0.00023175,2]
[357192126,1743880240980,-341.86734985,0.00023175,2]
[357192127,1743880240990,-500.0,0.00023175,2]
[357192128,1743880240999,-287.0,0.00023249,2]
[357192129,1743880241009,-200.0,0.00023287,2]
[357192130,1743880241019,-500.00849995,0.00023354,2]
[357192131,1743880241028,-531.98,0.00023429,2]
[357192132,1743880241037,-500.0,0.00023429,2]
[357192133,1743880241047,-647.57,0.00023429,2]
[357192134,1743880241056,-500.0,0.00023429,2]
[357192135,1743880241065,-530.51,0.00023429,2]
[357192136,1743880241075,-500.0,0.00023429,2]
[357192137,1743880241084,-1592.59,0.00023429,2]
[357192138,1743880241094,-851.78,0.00023429,2]
[357192139,1743880241103,-500.0,0.00023443,2]
[357192140,1743880241112,-500.0,0.00023449,2]
[357192141,1743880241121,-500.0,0.00023449,2]
[357192142,1743880241131,-500.0,0.00023449,2]
[357192143,1743880241140,-500.0,0.00023449,2]
[357192144,1743880241149,-500.0,0.00023449,2]
[357192145,1743880241159,-500.0,0.00023449,2]
[357192146,1743880241168,-500.0,0.00023449,2]
[357192147,1743880241177,-500.0,0.00023449,2]
[357192148,1743880241186,-500.0,0.00023449,2]
[357192149,1743880241196,-8649.82128945,0.000235,2]
[357192159,1743880242960,-401.0,0.00020729,2]
[357192160,1743880242970,-98.9967325,0.000235,2]
[357192161,1743880242983,-1302.0,0.000235,2]
[357192162,1743880242995,-17104.1158584,0.000235,2]
[357192163,1743880243006,-2327.29341596,0.000235,2]
[357192164,1743880243018,-573.56027256,0.000235,2]
[357192165,1743880243037,-1022.19826273,0.000235,2]
[357192166,1743880243048,-33065.94606329,0.000235,2]
[357192167,1743880243059,-4625.0000005,0.000235,2]
[357192194,1743880246146,-271.2209191,0.000235,2]
[357192195,1743880246158,-40845.60714926,0.000235,2]
[357192196,1743880246201,-1227.23823047,0.000235,2]
[357192197,1743880246213,-797.37923331,0.000235,2]
[357192198,1743880246224,-4547.19889855,0.000235,2]
[357192199,1743880246233,-185.092492,0.000235,2]
[357192200,1743880246242,-1809.47206029,0.00023521,4]
[357192201,1743880246251,-4758.51166253,0.00023567,2]
[357192202,1743880246263,-241.48833747,0.00023567,2]
[357192203,1743880246272,-4863.07110585,0.000236,2]
[357192204,1743880246283,-5164.62702083,0.000236,2]
[357192208,1743880268705,150.0,0.00023,30]
[357192211,1743880438486,4122.87067173,0.00023,10]
[357192219,1743881134119,-160.40508554,0.00018722,2]
[357192221,1743881151099,-89.59491446,0.00018722,2]
[357192222,1743881151121,-7247.8653536,0.00019015,2]
[357192223,1743881151145,-300.0,0.00019492,2]
[357192224,1743881151167,-199.98668322,0.00019493,2]
[357192225,1743881151188,-1505.52504984,0.00019493,2]
[357192226,1743881151211,-151.0,0.0001958,2]
[357192227,1743881151233,-151.0,0.0001958,2]
[357192228,1743881151256,-151.0,0.0001958,2]
[357192229,1743881151278,-151.0,0.00019581,2]
[357192230,1743881151300,-200.0,0.00019581,2]
[357192231,1743881151320,-341.11110408,0.00019582,2]
[357192232,1743881151341,-500.0,0.00019592,2]
[357192233,1743881151363,-733.65,0.00019592,2]
[357192234,1743881151386,-977.79,0.00019592,2]
[357192235,1743881151409,-500.0,0.00019592,2]
[357192236,1743881151430,-500.0,0.00019592,2]
[357192237,1743881151452,-161.2185005,0.00019592,2]
[357192324,1743881432284,-199.98668321,0.00019493,2]
[357192325,1743881432294,-300.0,0.0001959,2]
[357192326,1743881432304,-452.9421856,0.00019591,2]
[357192327,1743881432315,-500.0,0.00019591,2]
[357192331,1743881432481,-367.55394014,0.00019591,2]
[357192333,1743881432492,-500.0,0.00019591,2]
[357192335,1743881432502,-500.0,0.00019591,2]
[357192337,1743881432512,-703.08,0.00019591,2]
[357192339,1743881432522,-937.05,0.00019591,2]
[357192341,1743881432531,-500.0,0.00019591,2]
[357192343,1743881432541,-500.0,0.00019592,2]
[357192344,1743881432551,-500.0,0.00019592,2]
[357192345,1743881432561,-533.3494268,0.00019592,2]
[357192346,1743881432571,-500.0,0.00019592,2]
[357192347,1743881432580,-500.0,0.00019592,2]
[357192348,1743881432591,-547.66,0.00019592,2]
[357192349,1743881432601,-500.0,0.00019592,2]
[357192350,1743881432611,-500.0,0.00019592,2]
[357192351,1743881432621,-500.0,0.00019592,2]
[357192352,1743881432631,-1130.31,0.00019592,2]
[357192353,1743881432641,-500.0,0.00019592,2]
[357192354,1743881432651,-29881.04649044,0.00019592,2]
[357192355,1743881432677,-20118.95350956,0.00019592,2]
[357192356,1743881432687,-500.0,0.00019865,2]
[357192357,1743881432698,-500.0,0.00019865,2]
[357192358,1743881432708,-703.08,0.00019865,2]
[357192359,1743881432719,-937.05,0.00019865,2]
[357192360,1743881432729,-500.0,0.00019865,2]
[357192361,1743881432739,-500.0,0.00019866,2]
[357192362,1743881432749,-500.0,0.00019866,2]
[357192363,1743881432758,-500.0,0.00019866,2]
[357192364,1743881432768,-500.0,0.00019866,2]
[357192365,1743881432778,-500.0,0.00019866,2]
[357192366,1743881432788,-500.0,0.00019866,2]
[357192367,1743881432798,-547.66,0.00019866,2]
[357192368,1743881432808,-500.0,0.00019866,2]
[357192369,1743881432818,-500.0,0.00019866,2]
[357192370,1743881432832,-500.0,0.00019866,2]
[357192371,1743881432843,-1130.31,0.00019866,2]
[357192372,1743881432853,-420.82309248,0.00019866,2]
[357192373,1743881432862,-151.0,0.00020022,2]
[357192374,1743881432873,-200.0,0.00020022,2]
[357192375,1743881432883,-500.0,0.00020033,2]
[357192376,1743881432892,-500.0,0.00020073,2]
[357192377,1743881432902,-500.0,0.00020073,2]
[357192378,1743881432913,-500.0,0.00020073,2]
[357192379,1743881432923,-500.0,0.00020073,2]
[357192380,1743881432933,-500.0,0.00020073,2]
[357192381,1743881432943,-160.0,0.00020109,2]
[357192382,1743881432953,-160.0,0.00020109,2]
[357192383,1743881432962,-160.0,0.0002011,2]
[357192384,1743881432972,-12522.71377557,0.0002011,2]
[357192385,1743881432982,-729.16666667,0.0002011,2]
[357192386,1743881432992,-419.20823938,0.0002011,2]
[357192387,1743881433001,-160.0,0.0002011,2]
[357192388,1743881433011,-152.0,0.00020125,2]
[357192389,1743881433020,-234.12370464,0.00020139,2]
[357192390,1743881433030,-500.0,0.00020139,2]
[357192391,1743881433041,-703.08,0.00020139,2]
[357192392,1743881433052,-937.05,0.00020139,2]
[357192393,1743881433063,-500.0,0.00020139,2]
[357192394,1743881433074,-500.0,0.0002014,2]
[357192395,1743881433084,-500.0,0.0002014,2]
[357192396,1743881433095,-500.0,0.0002014,2]
[357192397,1743881433105,-500.0,0.0002014,2]
[357192398,1743881433114,-500.0,0.0002014,2]
[357192399,1743881433123,-500.0,0.0002014,2]
[357192400,1743881433133,-547.66,0.0002014,2]
[357192401,1743881433143,-500.0,0.0002014,2]
[357192402,1743881433152,-500.0,0.0002014,2]
[357192403,1743881433161,-500.0,0.0002014,2]
[357192404,1743881433172,-1130.31,0.0002014,2]
[357192405,1743881433182,-500.0,0.00020173,2]
[357192406,1743881433192,-500.0,0.00020173,2]
[357192407,1743881433201,-500.0,0.00020173,2]
[357192408,1743881433212,-500.0,0.00020173,2]
[357192409,1743881433221,-500.0,0.00020173,2]
[357192410,1743881433231,-260.47413193,0.00020173,2]
[357192411,1743881433241,-500.0,0.00020173,2]
[357192412,1743881433251,-500.0,0.00020173,2]
[357192413,1743881433261,-500.0,0.00020173,2]
[357192414,1743881433271,-500.0,0.00020173,2]
[357192415,1743881433280,-500.0,0.00020173,2]
[357192416,1743881433290,-500.0,0.00020173,2]
[357192417,1743881433300,-500.0,0.00020173,2]
[357192418,1743881433309,-500.0,0.00020173,2]
[357192419,1743881433319,-500.0,0.00020307,2]
[357192420,1743881433328,-500.0,0.00020381,2]
[357192421,1743881433338,-500.0,0.00020381,2]
[357192422,1743881433348,-500.0,0.00020413,2]
[357192423,1743881433357,-703.08,0.00020413,2]
[357192424,1743881433367,-937.05,0.00020413,2]
[357192425,1743881433377,-500.0,0.00020413,2]
[357192426,1743881433387,-500.0,0.00020414,2]
[357192427,1743881433396,-500.0,0.00020414,2]
[357192428,1743881433406,-500.0,0.00020414,2]
[357192429,1743881433415,-500.0,0.00020414,2]
[357192430,1743881433425,-500.0,0.00020414,2]
[357192431,1743881433434,-500.0,0.00020414,2]
[357192432,1743881433443,-547.66,0.00020414,2]
[357192433,1743881433453,-500.0,0.00020414,2]
[357192434,1743881433463,-500.0,0.00020414,2]
[357192435,1743881433472,-500.0,0.00020414,2]
[357192436,1743881433482,-1130.31,0.00020414,2]
[357192437,1743881433492,-500.0,0.00020581,2]
[357192438,1743881433502,-306.47985429,0.0002063,2]
[357192439,1743881433512,-500.0,0.00020687,2]
[357192440,1743881433522,-703.08,0.00020687,2]
[357192441,1743881433532,-937.05,0.00020687,2]
[357192442,1743881433542,-500.0,0.00020687,2]
[357192443,1743881433552,-500.0,0.00020688,2]
[357192444,1743881433562,-500.0,0.00020688,2]
[357192445,1743881433571,-500.0,0.00020688,2]
[357192446,1743881433581,-500.0,0.00020688,2]
[357192447,1743881433591,-500.0,0.00020688,2]
[357192448,1743881433601,-585.92374889,0.00020688,2]
[357192449,1743881433611,-547.66,0.00020688,2]
[357192450,1743881433621,-500.0,0.00020688,2]
[357192451,1743881433631,-500.0,0.00020688,2]
[357192452,1743881433642,-500.0,0.00020688,2]
[357192453,1743881433652,-1130.31,0.00020688,2]
[357192454,1743881433662,-500.0,0.00020855,2]
[357192455,1743881433672,-1752.99090684,0.000209,3]
[357192456,1743881433682,-500.0,0.00020961,2]
[357192457,1743881433692,-703.08,0.00020961,2]
[357192458,1743881433702,-937.05,0.00020961,2]
[357192459,1743881433712,-500.0,0.00020961,2]
[357192460,1743881433721,-500.0,0.00020962,2]
[357192461,1743881433731,-500.0,0.00020962,2]
[357192462,1743881433741,-500.0,0.00020962,2]
[357192463,1743881433751,-500.0,0.00020962,2]
[357192464,1743881433761,-305.22025889,0.00020962,2]
[357192465,1743881433771,-547.66,0.00020962,2]
[357192466,1743881433781,-500.0,0.00020962,2]
[357192467,1743881433791,-490.8708645,0.00020962,2]
[357192468,1743881433800,-500.0,0.00020962,2]
[357192469,1743881433811,-1130.31,0.00020962,2]
[357192470,1743881433820,-500.0,0.00021129,2]
[357192471,1743881433833,-542.0,0.00021129,2]
[357192472,1743881433845,-1478.0,0.00021129,2]
[357192473,1743881433855,-2255.0,0.00021129,2]
[357192474,1743881433864,-500.0,0.00021235,2]
[357192475,1743881433874,-703.08,0.00021235,2]
[357192476,1743881433886,-937.05,0.00021235,2]
[357192477,1743881433895,-500.0,0.00021235,2]
[357192478,1743881433905,-533.74484861,0.00021236,2]
[357192479,1743881433917,-500.0,0.00021236,2]
[357192480,1743881433927,-500.0,0.00021236,2]
[357192481,1743881433937,-500.0,0.00021236,2]
[357192482,1743881433946,-547.66,0.00021236,2]
[357192483,1743881433956,-500.0,0.00021236,2]
[357192484,1743881433965,-602.95397009,0.00021236,2]
[357192485,1743881433974,-1130.31,0.00021236,2]
[357192486,1743881433984,-420.0,0.0002134,2]
[357192487,1743881433993,-151.0,0.00021391,2]
[357192488,1743881434003,-207.4,0.00021391,2]
[357192489,1743881434012,-500.0,0.00021403,2]
[357192490,1743881434022,-477.24,0.000215,3]
[357192491,1743881434032,-500.0,0.00021509,2]
[357192492,1743881434042,-703.08,0.00021509,2]
[357192493,1743881434052,-937.05,0.00021509,2]
[357192494,1743881434062,-500.0,0.00021509,2]
[357192495,1743881434072,-500.0,0.0002151,2]
[357192496,1743881434082,-500.0,0.0002151,2]
[357192497,1743881434092,-500.0,0.0002151,2]
[357192498,1743881434103,-547.66,0.0002151,2]
[357192499,1743881434113,-500.0,0.0002151,2]
[357192500,1743881434123,-1130.31,0.0002151,2]
[357192501,1743881434133,-1752.9909068,0.00021555,3]
[357192502,1743881434143,-500.0,0.00021677,2]
[357192503,1743881434154,-500.0,0.00021783,2]
[357192504,1743881434165,-703.08,0.00021783,2]
[357192505,1743881434177,-937.05,0.00021783,2]
[357192506,1743881434189,-500.0,0.00021783,2]
[357192507,1743881434201,-284.1456907,0.00021784,2]
[357192508,1743881434211,-500.0,0.00021784,2]
[357192509,1743881434221,-643.94672702,0.00021784,2]
[357192510,1743881434231,-547.66,0.00021784,2]
[357192511,1743881434241,-500.0,0.00021784,2]
[357192512,1743881434253,-1130.31,0.00021784,2]
[357192513,1743881434263,-178.139,0.00021809,2]
[357192514,1743881434273,-500.0,0.00021951,2]
[357192515,1743881434283,-500.0,0.00022057,2]
[357192516,1743881434294,-703.08,0.00022057,2]
[357192517,1743881434309,-937.05,0.00022057,2]
[357192518,1743881434320,-500.0,0.00022057,2]
[357192519,1743881434329,-179.87989454,0.00022058,2]
[357192520,1743881434340,-547.66,0.00022058,2]
[357192521,1743881434351,-500.0,0.00022058,2]
[357192522,1743881434361,-1130.31,0.00022058,2]
[357192523,1743881434371,-1000.0,0.00022174,5]
[357192524,1743881434381,-1752.9909068,0.0002221,3]
[357192525,1743881434391,-500.0,0.00022225,2]
[357192526,1743881434401,-500.0,0.00022331,2]
[357192527,1743881434411,-703.08,0.00022331,2]
[357192528,1743881434423,-937.05,0.00022331,2]
[357192529,1743881434433,-500.0,0.00022331,2]
[357192530,1743881434446,-237.85765989,0.00022331,2]
[357192531,1743881434456,-443.75154905,0.00022331,2]
[357192532,1743881434465,-500.0,0.00022331,2]
[357192533,1743881434476,-547.66,0.00022332,2]
[357192534,1743881434485,-500.0,0.00022332,2]
[357192535,1743881434496,-1130.31,0.00022332,2]
[357192536,1743881434506,-500.0,0.00022499,2]
[357192537,1743881434516,-1100.0,0.00022568,2]
[357192538,1743881434526,-500.0,0.00022605,2]
[357192539,1743881434535,-703.08,0.00022605,2]
[357192540,1743881434545,-937.05,0.00022605,2]
[357192541,1743881434555,-612.83041275,0.00022605,2]
[357192542,1743881434564,-547.66,0.00022606,2]
[357192543,1743881434574,-500.0,0.00022606,2]
[357192544,1743881434583,-1130.31,0.00022606,2]
[357192545,1743881434593,-151.0,0.0002276,2]
[357192546,1743881434602,-215.0738,0.0002276,2]
[357192547,1743881434612,-500.0,0.00022773,2]
[357192548,1743881434622,-1752.9909068,0.00022866,4]
[357192549,1743881434631,-500.0,0.00022879,2]
[357192550,1743881434641,-703.08,0.00022879,2]
[357192551,1743881434650,-937.05,0.00022879,2]
[357192552,1743881434660,-547.66,0.0002288,2]
[357192553,1743881434671,-500.0,0.0002288,2]
[357192554,1743881434681,-1130.31,0.0002288,2]
[357192555,1743881434690,-244.7136828,0.00022892,2]
[357192556,1743881434700,-357.0,0.00023009,3]
[357192557,1743881434710,-175.56794436,0.00023009,3]
[357192558,1743881434719,-323.56009542,0.00023009,3]
[357192559,1743881434728,-500.0,0.00023047,2]
[357192560,1743881434737,-427.28313656,0.00023095,2]
[357192561,1743881434747,-500.0,0.00023153,2]
[357192562,1743881434757,-703.08,0.00023153,2]
[357192563,1743881434767,-937.05,0.00023153,2]
[357192564,1743881434776,-547.66,0.00023154,2]
[357192565,1743881434786,-500.0,0.00023154,2]
[357192566,1743881434795,-1130.31,0.00023154,2]
[357192567,1743881434804,-587.0,0.00023247,2]
[357192568,1743881434814,-555.46506313,0.00023321,2]
[357192569,1743881434824,-500.0,0.00023427,2]
[357192570,1743881434833,-703.08,0.00023427,2]
[357192571,1743881434844,-937.05,0.00023427,2]
[357192572,1743881434858,-547.66,0.00023428,2]
[357192573,1743881434868,-500.0,0.00023428,2]
[357192574,1743881434878,-1130.31,0.00023428,2]
[357192575,1743881434887,-1752.9909068,0.00023521,4]
[357192576,1743881434897,-500.0,0.00023573,2]
[357192577,1743881434907,-500.0,0.00023573,2]
[357192578,1743881434916,-151.0,0.0002359,7]
[357192579,1743881434926,-151.0,0.0002359,7]
[357192580,1743881434936,-151.0,0.0002359,7]
[357192581,1743881434945,-151.0,0.0002359,7]
[357192582,1743881434955,-422.492873,0.0002359,7]
[357192583,1743881434964,-623.788172,0.0002359,7]
[357192584,1743881434973,-623.788172,0.0002359,7]
[357192585,1743881434983,-151.0,0.0002359,7]
[357192586,1743881434992,-319.562788,0.0002359,7]
[357192587,1743881435001,-319.562788,0.0002359,7]
[357192588,1743881435011,-151.0,0.0002359,7]
[357192589,1743881435020,-151.0,0.0002359,7]
[357192590,1743881435030,-193.842203,0.0002359,7]
[357192591,1743881435039,-193.842203,0.0002359,7]
[357192592,1743881435048,-151.0,0.0002359,7]
[357192593,1743881435058,-400.151707,0.0002359,7]
[357192594,1743881435067,-151.0,0.0002359,7]
[357192595,1743881435077,-400.151707,0.0002359,7]
[357192596,1743881435086,-214.084533,0.0002359,7]
[357192597,1743881435095,-214.084533,0.0002359,7]
[357192598,1743881435105,-151.0,0.0002359,7]
[357192599,1743881435114,-151.0,0.0002359,7]
[357192600,1743881435124,-181.865151,0.0002359,7]
[357192601,1743881435133,-181.865151,0.0002359,7]
[357192602,1743881435143,-151.0,0.0002359,7]
[357192603,1743881435152,-53484.52073265,0.0002359,2]
[357192620,1743881438013,-500.0,0.00020072,2]
[357192621,1743881438024,-500.0,0.00020072,2]
[357192622,1743881438034,-403.74639234,0.00020072,2]
[357192623,1743881438044,-306.40692849,0.00023564,2]
[357192624,1743881438057,-3318.54571111,0.00023564,2]
[357192625,1743881438068,-3622.64913714,0.0002359,2]
[357192626,1743881438080,-7488.64515175,0.0002359,2]
[357192627,1743881438091,-1000.0,0.0002359,2]
[357192628,1743881438122,-31388.73930577,0.0002359,2]
[357192629,1743881438132,-15367.46964184,0.000236,2]
[357192635,1743881438290,-61095.83124116,0.000236,2]
[357192719,1743881443483,-17.82278728,0.0002359,7]
[357192730,1743881446225,-133.17721272,0.0002359,7]
[357192731,1743881446236,-3958.12512264,0.000236,2]
[357192773,1743882337134,-1052.00818997,0.00017744,2]
[357192795,1743882547118,-250.0,0.00017738,2]
[357192796,1743882547139,-1047.16296303,0.00017744,2]
[357192797,1743882547161,-507.2048184,0.00018566,2]
[357192798,1743882547181,-1317.33441861,0.00018645,2]
[357192799,1743882547200,-467.1687382,0.00018735,2]
[357192800,1743882547221,-300.0,0.00018743,2]
[357192801,1743882547242,-500.0,0.00018744,2]
[357192802,1743882547263,-500.0,0.00018744,2]
[357192803,1743882547283,-500.0,0.00018744,2]
[357192804,1743882547303,-500.0,0.00018744,2]
[357192805,1743882547323,-500.0,0.00018744,2]
[357192806,1743882547344,-500.0,0.00018744,2]
[357192807,1743882547366,-500.0,0.00018744,2]
[357192808,1743882547389,-747.22,0.00018744,2]
[357192809,1743882547410,-500.0,0.00018744,2]
[357192810,1743882547431,-550.01,0.00018744,2]
[357192811,1743882547455,-500.0,0.00018744,2]
[357192812,1743882547476,-500.0,0.00018744,2]
[357192813,1743882547498,-37740.07961662,0.00018744,2]
[357192814,1743882547518,-6228.19484816,0.00018745,2]
[357192815,1743882562100,-11564.22433822,0.00018745,2]
[357192825,1743882632589,-500.0,0.00018743,2]
[357192826,1743882632599,-500.0,0.00018743,2]
[357192827,1743882632610,-716.09,0.00018743,2]
[357192828,1743882632619,-527.1,0.00018744,2]
[357192829,1743882632629,-7107.58081362,0.00018745,2]
[357192830,1743882632638,-500.0,0.00018773,2]
[357192831,1743882632648,-337.30825594,0.00018773,2]
[357192832,1743882632658,-500.0,0.00018773,2]
[357192833,1743882632669,-500.0,0.00018773,2]
[357192834,1743882632679,-500.0,0.00018773,2]
[357192835,1743882632688,-500.0,0.00018773,2]
[357192836,1743882632698,-530.60329494,0.00018773,2]
[357192837,1743882632707,-500.0,0.00018773,2]
[357192838,1743882632717,-199.609998,0.00018945,2]
[357192839,1743882632726,-500.0,0.00019017,2]
[357192840,1743882632736,-500.0,0.00019017,2]
[357192841,1743882632746,-716.09,0.00019017,2]
[357192842,1743882632755,-169.13456066,0.00019018,2]
[357192843,1743882632764,-500.0,0.00019018,2]
[357192844,1743882632773,-500.0,0.00019018,2]
[357192845,1743882632783,-500.0,0.00019018,2]
[357192846,1743882632792,-500.0,0.00019018,2]
[357192847,1743882632802,-500.0,0.00019018,2]
[357192848,1743882632812,-527.1,0.00019018,2]
[357192849,1743882632821,-630.42259242,0.00019291,2]
[357192850,1743882632830,-500.0,0.00019291,2]
[357192851,1743882632840,-716.09,0.00019291,2]
[357192852,1743882632849,-500.0,0.00019292,2]
[357192853,1743882632860,-500.0,0.00019292,2]
[357192854,1743882632870,-527.1,0.00019292,2]
[357192855,1743882632879,-500.0,0.00019565,2]
[357192856,1743882632889,-716.09,0.00019565,2]
[357192857,1743882632898,-500.0,0.00019566,2]
[357192858,1743882632908,-480.43,0.00019566,2]
[357192859,1743882632917,-527.1,0.00019566,2]
[357192860,1743882632927,-500.0,0.00019573,2]
[357192861,1743882632937,-500.0,0.00019839,2]
[357192862,1743882632946,-716.09,0.00019839,2]
[357192863,1743882632955,-500.0,0.0001984,2]
[357192864,1743882632965,-527.1,0.0001984,2]
[357192865,1743882632974,-1152.66761631,0.00019873,2]
[357192866,1743882632984,-151.0,0.0001992,2]
[357192867,1743882632994,-200.0,0.0001992,2]
[357192868,1743882633003,-4829.44992646,0.00019932,2]
[357192869,1743882633085,-445.40397268,0.00019932,2]
[357192870,1743882638151,-43545.6575619,0.00019932,2]
[357192871,1743882638182,-23439.48393877,0.00019932,2]
[357192872,1743882638191,-500.0,0.00019973,2]
[357192873,1743882638200,-500.0,0.00020113,2]
[357192874,1743882638209,-716.09,0.00020113,2]
[357192875,1743882638218,-500.0,0.00020114,2]
[357192876,1743882638227,-527.1,0.00020114,2]
[357192877,1743882638237,-160.0,0.00020124,2]
[357192878,1743882638246,-500.0,0.00020387,2]
[357192879,1743882638255,-716.09,0.00020387,2]
[357192880,1743882638265,-500.0,0.00020388,2]
[357192881,1743882638274,-527.1,0.00020388,2]
[357192882,1743882638283,-500.0,0.00020661,2]
[357192883,1743882638291,-716.09,0.00020661,2]
[357192884,1743882638300,-500.0,0.00020662,2]
[357192885,1743882638310,-527.1,0.00020662,2]
[357192886,1743882638318,-500.0,0.00020935,2]
[357192887,1743882638327,-716.09,0.00020935,2]
[357192888,1743882638337,-500.0,0.00020936,2]
[357192889,1743882638346,-527.1,0.00020936,2]
[357192890,1743882638355,-12517.44636928,0.00021097,2]
[357192891,1743882638364,-500.0,0.00021209,2]
[357192892,1743882638373,-716.09,0.00021209,2]
[357192893,1743882638383,-500.0,0.0002121,2]
[357192894,1743882638392,-527.1,0.0002121,2]
[357192895,1743882638406,-151.0,0.00021289,2]
[357192896,1743882638415,-207.4,0.00021289,2]
[357192897,1743882638424,-500.0,0.00021483,2]
[357192898,1743882638433,-716.09,0.00021483,2]
[357192899,1743882638443,-524.21237799,0.00021484,2]
[357192901,1743882638452,-527.1,0.00021484,2]
[357192903,1743882638462,-150.0,0.00021517,2]
[357192905,1743882638471,-1478.0,0.00021517,2]
[357192906,1743882638482,-542.0,0.00021517,2]
[357192907,1743882638492,-2255.0,0.00021517,2]
[357192908,1743882638501,-150.0,0.00021517,2]
[357192909,1743882638510,-327.93000025,0.00021757,2]
[357192910,1743882638518,-716.09,0.00021757,2]
[357192911,1743882638527,-527.1,0.00021758,2]
[357192912,1743882638536,-155.386168,0.00021829,3]
[357192913,1743882638545,-594.65960246,0.00021867,2]
[357192914,1743882638554,-500.0,0.00021867,2]
[357192915,1743882638563,-200.0,0.00021917,2]
[357192916,1743882638572,-716.09,0.00022031,2]
[357192917,1743882638582,-527.1,0.00022032,2]
[357192918,1743882638590,-716.09,0.00022305,2]
[357192919,1743882638600,-527.1,0.00022306,2]
[357192920,1743882638609,-155.386168,0.00022366,2]
[357192921,1743882638619,-2212.346,0.00022464,2]
[357192922,1743882638628,-160.0,0.00022541,2]
[357192923,1743882638638,-419.20823938,0.00022541,2]
[357192924,1743882638648,-136.27317325,0.00022541,2]
[357192925,1743882638667,-23.72682675,0.00022541,2]
[357192926,1743882638677,-1000.0,0.00022568,2]
[357192927,1743882638687,-716.09,0.00022579,2]
[357192928,1743882638697,-527.1,0.0002258,2]
[357192929,1743882638706,-160.0,0.00022604,2]
[357192930,1743882638716,-151.0,0.00022658,2]
[357192931,1743882638725,-215.0738,0.00022658,2]
[357192932,1743882638734,-1152.66761628,0.00022734,2]
[357192933,1743882638744,-527.1,0.00022853,2]
[357192934,1743882638753,-716.09,0.00022853,2]
[357192935,1743882638763,-338.4895871,0.00022892,2]
[357192936,1743882638773,-527.1,0.00023127,2]
[357192937,1743882638783,-716.09,0.00023127,2]
[357192938,1743882638792,-792.16252439,0.00023246,2]
[357192939,1743882638802,-200.0,0.00023287,2]
[357192940,1743882638812,-527.1,0.00023401,2]
[357192941,1743882638822,-716.09,0.00023401,2]
[357192942,1743882638831,-4162.17302554,0.000236,2]
[357192943,1743882638843,-4697.42815373,0.000236,2]
[357192944,1743882638854,-919.93959773,0.000236,2]
[357192945,1743882638866,-610.01511325,0.000236,2]
[357192963,1743882640656,-150.0,0.00021517,2]
[357192964,1743882640666,-150.0,0.00021517,2]
[357192965,1743882640676,-150.0,0.00021517,2]
[357192966,1743882640686,-729.16666667,0.00022541,2]
[357192967,1743882640695,-34796.78631118,0.000236,2]
[357192968,1743882640707,-37810.17473379,0.000236,2]
[357192969,1743882640719,-32401.32800789,0.000236,2]